Cogmind - Beta 13 *** ADVENTURER MODE // 2024.07.14 @ 05:40:24 Player: Jefffff Result: Self-destructed Performance ------------- Evolutions (2) 1000 Regions Visited (5) 1000 Robots Destroyed (33) 165 Value Destroyed (1224) 1224 Prototype IDs (0) 0 Alien Tech Used (0) 0 Bonus (0) 0 TOTAL SCORE: 3389 Bonus ------- None Cogmind --------- Core Integrity 340/550 Matter 161/300 Energy 100/100 System Corruption 0% Temperature Cool (0) Movement Core (300) Ox5 Location -8/Materials Parts ------- > --- POWER (2) -------- (None) > --- PROPULSION (3) --- (None) > --- UTILITY (3) ------ Heat Sink Improved Heat Sink Small Storage Unit > --- WEAPON (3) ------- Autogun Minigun Rocket Launcher > --- INVENTORY (8) ---- Small Storage Unit Improved Sensor Array Improved Signal Interpreter Advanced Targeting Computer Light Assault Rifle Rocket Launcher Peak State ------------ > --- POWER ------------ Improved Ion Engine Improved Ion Engine > --- PROPULSION ------- Aluminum Leg Aluminum Leg Aluminum Leg > --- UTILITY ---------- Heat Sink Improved Heat Sink Small Storage Unit > --- WEAPON ----------- Beam Rifle Particle Cannon Light Assault Rifle > --- INVENTORY -------- Light Nuclear Core Aluminum Leg Improved Signal Interpreter Improved Terrain Scan Processor Medium Laser Light Assault Rifle Rocket Launcher Rocket Launcher [Rating: 18] Favorites ----------- Power Improved Ion Engine Engine Improved Ion Engine Power Core Light Nuclear Core Propulsion Aluminum Leg Leg Aluminum Leg Utility Small Storage Unit Device Heat Sink Storage Small Storage Unit Weapon Light Assault Rifle Energy Gun Beam Rifle Energy Cannon Particle Cannon Ballistic Gun Light Assault Rifle Launcher Rocket Launcher Build | -11 -10 -10 -9 -9 -8 ------- Run | Yrd Mat Min Mat Min Mat Slots Evolved 4 | . . . 2 . 2 Power 1 | . . . 1 . . Propulsion 1 | . . . . . 1 Utility 1 | . . . . . 1 Weapon 1 | . . . 1 . . Parts Attached 24 | 1 5 2 5 . 11 Power 4 | 1 . . 2 . 1 Engine 3 | 1 . . 2 . . Core 1 | . . . . . 1 Reactor . | . . . . . . Propulsion 6 | . 2 . . . 4 Treads . | . . . . . . Leg 6 | . 2 . . . 4 Wheel . | . . . . . . Hover . | . . . . . . Flight . | . . . . . . Utility 4 | . 1 . 1 . 2 Device 3 | . . . 1 . 2 Storage 1 | . 1 . . . . Processor . | . . . . . . Hackware . | . . . . . . Protection . | . . . . . . Artifact . | . . . . . . Weapon 10 | . 2 2 2 . 4 Energy Gun 2 | . 1 . 1 . . Energy Cannon 1 | . . 1 . . . Ballistic Gun 5 | . 1 . 1 . 3 Ballistic Cannon . | . . . . . . Launcher 2 | . . 1 . . 1 Special Weapon . | . . . . . . Impact Weapon . | . . . . . . Slashing Weapon . | . . . . . . Piercing Weapon . | . . . . . . Special Melee Weapon . | . . . . . . Unidentified Prototypes . | . . . . . . Parts Lost 10 | . . . . . 10 Power 3 | . . . . . 3 Propulsion 4 | . . . . . 4 Utility . | . . . . . . Weapon 3 | . . . . . 3 Highest Loss Streak 7 | . . . . . 7 To Critical Strikes . | . . . . . . Average Slot Usage (%) 88 | . 60 85 93 100 86 Engine 17 | . 14 14 22 22 12 Leg 22 | . 16 28 22 22 23 Device 8 | . . . 5 11 14 Storage 10 | . 7 14 11 11 9 Energy Gun 7 | . 14 9 6 11 6 Energy Cannon 7 | . . 4 11 11 6 Ballistic Gun 12 | . 7 14 15 11 11 Naked Turns . | . . . . . . Heaviest Build 29 | 5 13 15 28 28 29 Greatest Support 30 | 3 20 20 20 20 30 Greatest Overweight (x) 5 | 1 2 . 1 1 5 Average Overweight (x) . | . . . 1 1 . Largest Inventory Capacity 8 | 5 8 8 8 8 8 Average Capacity 7 | 5 6 8 8 8 8 Most Carried 8 | 5 5 5 6 6 8 Average Carried 5 | 4 3 4 4 6 6 Final Capacity 8 | 5 8 8 8 8 8 Final Carried 6 | 5 4 5 6 6 6 Class Distribution -------------------- 48% | Gunner 22% | Scavenger-Gunner 19% | Mutant 8% | Scavenger-Mutant Dominant Class ---------------- Mutant | -10/Materials Mutant | -10/Mines Gunner | -9/Materials Gunner | -9/Mines Scavenger-Gunner | -8/Materials Resources | -11 -10 -10 -9 -9 -8 ----------- Run | Yrd Mat Min Mat Min Mat Matter Collected 582 | 202 34 31 141 . 174 Remotely . | . . . . . . Salvage Created 1345 | . 34 31 297 . 983 Parts 64 | . 2 1 26 . 35 Haulers Intercepted . | . . . . . . Recyclers Shooed 1 | . . . . . 1 Parts Field Recycled . | . . . . . . Retrieved Matter . | . . . . . . Parts Self-Destructed . | . . . . . . Prevented . | . . . . . . Kills | -11 -10 -10 -9 -9 -8 ------- Run | Yrd Mat Min Mat Min Mat Combat Hostiles Destroyed 24 | . 1 1 4 . 18 Guns 15 | . 1 . 3 . 11 Cannons 8 | . . 1 1 . 6 AOE 1 | . . . . . 1 Classes Destroyed 7 | . 1 . 3 . 3 Worker 1 | . . . 1 . . Builder 1 | . . . . . 1 Recycler 1 | . . . . . 1 Watcher 6 | . . . 4 . 2 Grunt 19 | . 1 1 2 . 15 Sentry 4 | . . . 2 . 2 Hunter 1 | . . . . . 1 Best Kill Streak 6 | . 1 1 3 . 6 Combat Bots Only 5 | . 1 1 1 . 5 Max Kills in Single Turn 3 | . 1 1 1 . 3 Gunslinging . | . . . . . . Exploded 1 | . . . . . 1 Melee . | . . . . . . Uniques/NPCs Destroyed . | . . . . . . Combat | -11 -10 -10 -9 -9 -8 -------- Run | Yrd Mat Min Mat Min Mat Hostile Shots Fired 186 | . 10 2 12 . 162 Missed 56 | . 3 . 3 . 50 Damage Taken 1536 | . 58 27 100 . 1351 Core 257 | . 33 . 14 . 210 Absorbed by Shields . | . . . . . . Ignored by Resistances 437 | . 18 8 28 . 383 Core Remaining (%) 94 | 100 . 86 . 96 . Volleys Fired 85 | . 5 3 14 . 63 Largest 3 | . 2 2 3 . 3 Hottest 144 | . 70 88 144 . 144 Shots Fired 215 | . 7 6 42 . 160 Gun 161 | . 7 3 28 . 123 Cannon 48 | . . 3 14 . 31 Launcher 6 | . . . . . 6 Special . | . . . . . . Kinetic 104 | . 2 3 18 . 81 Thermal 105 | . 5 3 24 . 73 Explosive 6 | . . . . . 6 Electromagnetic . | . . . . . . Robot Hit Streak 32 | . 6 11 14 . 32 Robot Miss Streak 3 | . 1 . 1 . 3 Penetration Max . | . . . . . . Secondary Targets 1 | . . . . . 1 Max Gunslinging Chain 1 | . . . . . 1 Shots Hit Robots 155 | . 6 5 26 . 118 Core Hits 73 | . 2 1 12 . 58 Critical Kills 1 | . . . 1 . . Critical Parts Destroyed . | . . . . . . Critical Strikes 8 | . . . 1 . 7 Burn 7 | . . . . . 7 Destroy 1 | . . . 1 . . Melee Attacks . | . . . . . . Impact . | . . . . . . Slashing . | . . . . . . Piercing . | . . . . . . Sneak Attacks . | . . . . . . Combat Hostiles . | . . . . . . Follow-up Attacks . | . . . . . . Damage Inflicted 2693 | . 62 81 384 . 2166 Guns 1431 | . 62 20 187 . 1162 Cannons 717 | . . 61 185 . 471 Explosions 533 | . . . . . 533 Melee . | . . . . . . Ramming 12 | . . . 12 . . Kinetic 759 | . 12 20 72 . 655 Thermal 1389 | . 50 61 300 . 978 Explosive 533 | . . . . . 533 Electromagnetic . | . . . . . . Impact . | . . . . . . Slashing . | . . . . . . Piercing . | . . . . . . Highest Corruption . | . . . . . . Average Corruption . | . . . . . . Corruption Purged . | . . . . . . Corruption Blocked . | . . . . . . Overload Shots . | . . . . . . Overflow Damage 19 | . . 19 . . . Projectiles 19 | . . 19 . . . Explosions . | . . . . . . Melee . | . . . . . . Knockbacks . | . . . . . . Impact . | . . . . . . Kinetic . | . . . . . . Secondary . | . . . . . . Self-Inflicted Damage . | . . . . . . Shots . | . . . . . . Rammed . | . . . . . . Targets Rammed 2 | . . . 2 . . Kicked 2 | . . . 2 . . Crushed . | . . . . . . Highest Temperature 322 | . 52 133 300 . 322 Average Temperature 100 | . 26 62 111 . 105 Received Heat Transfer 1044 | . 42 18 39 . 945 Effects 2 | . . . 1 . 1 Matter Decay 2 | . . . 1 . 1 Siege Activations . | . . . . . . Robots Corrupted . | . . . . . . Combat Hostiles . | . . . . . . Parts Fried 1 | . . 1 . . . Impact Corruptions . | . . . . . . Robots Melted . | . . . . . . Combat Hostiles . | . . . . . . Parts Melted 5 | . . . 1 . 4 Heat Transferred 3552 | . 148 111 629 . 2664 Parts Sabotaged . | . . . . . . Parts Stolen . | . . . . . . Parts Stripped . | . . . . . . Power Chain Reactions . | . . . . . . Alert | -11 -10 -10 -9 -9 -8 ------- Run | Yrd Mat Min Mat Min Mat Peak Influence 281 | . 20 46 167 26 281 Initial 26 | . . 6 15 26 8 Average 69 | . 10 18 82 26 101 Maximum Alert Level 1 | . . . . . 1 Low Security (%) 95 | 100 100 100 100 100 88 Level 1 4 | . . . . . 11 Level 2 . | . . . . . . Level 3 . | . . . . . . Level 4 . | . . . . . . Level 5 . | . . . . . . High Security . | . . . . . . Max Security . | . . . . . . Squads Dispatched 5 | . . . 1 . 4 Investigation 2 | . . . . . 2 Extermination . | . . . . . . Reinforcement 3 | . . . 1 . 2 Assault . | . . . . . . Garrison . | . . . . . . Intercept . | . . . . . . Searches Triggered . | . . . . . . Construction Impeded . | . . . . . . Haulers Reinforced . | . . . . . . Active Scanning Responses . | . . . . . . Cargo Convoy Interrupts . | . . . . . . Stealth | -11 -10 -10 -9 -9 -8 --------- Run | Yrd Mat Min Mat Min Mat Distress Signals 2 | . . . . . 2 Communications Jammed . | . . . . . . Distress Signals . | . . . . . . Times Spotted 43 | . 2 1 10 . 30 Peak Tracking Total 10 | . 1 1 3 . 10 Tactical Retreats 1 | . . . 1 . . Traps | -11 -10 -10 -9 -9 -8 ------- Run | Yrd Mat Min Mat Min Mat Traps Triggered 1 | . . . . . 1 Indirectly . | . . . . . . Trap Hack Attempts . | . . . . . . Triggered . | . . . . . . Disarmed . | . . . . . . Reprogrammed . | . . . . . . Reused . | . . . . . . Traps Extracted . | . . . . . . Installed . | . . . . . . Triggered 1 | . . 1 . . . Machines | -11 -10 -10 -9 -9 -8 ---------- Run | Yrd Mat Min Mat Min Mat Machines Disabled . | . . . . . . Max in Single Turn . | . . . . . . Machines Repaired . | . . . . . . Machines Dismantled . | . . . . . . Machines Sabotaged . | . . . . . . Overloaded Fab Kills . | . . . . . . Hacking | -11 -10 -10 -9 -9 -8 --------- Run | Yrd Mat Min Mat Min Mat Machines Accessed 2 | . . . . . 2 Terminals 1 | . . . . . 1 Fabricators . | . . . . . . Repair Stations . | . . . . . . Recycling Units . | . . . . . . Scanalyzers 1 | . . . . . 1 Garrison Access . | . . . . . . Total Hacks 13 | . . . . . 13 Successful 10 | . . . . . 10 Failed 3 | . . . . . 3 Catastrophic . | . . . . . . Database Lockouts . | . . . . . . Manual . | . . . . . . Terminals 2 | . . . . . 2 Fabricators . | . . . . . . Repair Stations . | . . . . . . Recycling Units . | . . . . . . Scanalyzers 11 | . . . . . 11 Garrison Access . | . . . . . . Terminal Hacks 1 | . . . . . 1 Unreport Threat 1 | . . . . . 1 Fabricator Hacks . | . . . . . . Repair Station Hacks . | . . . . . . Recycling Unit Hacks . | . . . . . . Scanalyzer 9 | . . . . . 9 Insert Component 4 | . . . . . 4 Analyze 5 | . . . . . 5 Garrison Access Hacks . | . . . . . . Unauthorized Hacks . | . . . . . . Terminals . | . . . . . . Fabricators . | . . . . . . Repair Stations . | . . . . . . Recycling Units . | . . . . . . Scanalyzers . | . . . . . . Garrison Access . | . . . . . . Data Cores Recovered . | . . . . . . Used . | . . . . . . Hacking Detections 2 | . . . . . 2 Full Trace Events 1 | . . . . . 1 Feedback Events . | . . . . . . Feedback Blocked . | . . . . . . Robot Schematics Acquired . | . . . . . . Robots Built . | . . . . . . Authchips . | . . . . . . Time . | . . . . . . Total Robot Build Rating . | . . . . . . Part Schematics Acquired 4 | . . . . . 4 Parts Built . | . . . . . . Authchips . | . . . . . . Time . | . . . . . . Total Part Build Rating . | . . . . . . Parts Repaired . | . . . . . . Time . | . . . . . . Parts Recycled . | . . . . . . Recycled Matter . | . . . . . . Retrieved Matter . | . . . . . . Retrieved Components . | . . . . . . Parts Scanalyzed 4 | . . . . . 4 Part Schematics Acquired 4 | . . . . . 4 Parts Damaged . | . . . . . . Bothacking | -11 -10 -10 -9 -9 -8 ------------ Run | Yrd Mat Min Mat Min Mat Used RIF Installer . | . . . . . . Robots Hacked . | . . . . . . Non-combat . | . . . . . . Combat . | . . . . . . Robot Hacks Applied . | . . . . . . Relay Couplers Released . | . . . . . . Fabnet Peak Effective % . | . . . . . . Robots Rewired . | . . . . . . Allies Hacked . | . . . . . . Hacks Repelled . | . . . . . . Allies | -11 -10 -10 -9 -9 -8 -------- Run | Yrd Mat Min Mat Min Mat Total Allies . | . . . . . . Largest Group . | . . . . . . Highest-Rated Group . | . . . . . . Highest-Rated Ally . | . . . . . . Total Orders . | . . . . . . Ally Attacks . | . . . . . . Total Damage . | . . . . . . Kills . | . . . . . . Allies Corrupted . | . . . . . . Allies Melted . | . . . . . . Intel | -11 -10 -10 -9 -9 -8 ------- Run | Yrd Mat Min Mat Min Mat Robot Analysis Total . | . . . . . . Derelict Logs Recovered 1 | . . 1 . . . Drone Launches . | . . . . . . Drone Recoveries . | . . . . . . Exploration | -11 -10 -10 -9 -9 -8 ------------- Run | Yrd Mat Min Mat Min Mat Turns Passed 1554 | 39 114 165 579 131 526 Spaces Moved 763 | 44 75 123 210 60 251 Core 78 | 44 30 . . . 4 Treads . | . . . . . . Legs 685 | . 45 123 210 60 247 Wheels . | . . . . . . Hover . | . . . . . . Flight . | . . . . . . Fastest Speed 50 | 50 100 120 190 190 120 Average Speed 143 | 76 126 120 190 190 123 Slowest Speed 300 | 100 150 120 190 190 300 Overloaded Moves . | . . . . . . Propulsion Burnouts . | . . . . . . Robots Hopped . | . . . . . . Cave-ins Triggered . | . . . . . . Exploration Rate (%) 23 | 3 16 37 29 29 28 Regions Visited 5 Branch Regions 2 Pre-discovered Areas . | . . . . . . Known Exits Taken 1 | . . . 1 . . Unknown Exits Taken 4 | 1 1 1 . 1 . Scrap Searched . | . . . . . . Spaces Dug . | . . . . . . Terrain Destroyed 24 | . . . . . 24 Melee . | . . . . . . Projectile . | . . . . . . AOE 24 | . . . . . 24 Terrain Rammed . | . . . . . . Walls Destroyed . | . . . . . . Machines Disabled . | . . . . . . Actions | -11 -10 -10 -9 -9 -8 --------- Run | Yrd Mat Min Mat Min Mat Total 1062 | 49 87 135 360 77 354 Wait 164 | . . 6 124 18 16 Move 758 | 43 74 122 209 59 251 Hop . | . . . . . . Pick Up 22 | 5 3 1 5 . 8 Fast Attach 3 | 1 1 . . . 1 Attach 14 | . 4 1 3 . 6 Detach 1 | . . 1 . . . Swap 7 | . . 1 2 . 4 Drop 6 | . . . 1 . 5 Fire 85 | . 5 3 14 . 63 Melee . | . . . . . . Ram . | . . . . . . Kick 2 | . . . 2 . . Crush . | . . . . . . Escape Stasis . | . . . . . . Rewire . | . . . . . . Trap . | . . . . . . Miscellaneous . | . . . . . . Route ------- -11/Scrapyard -10/Materials -10/Mines -9/Materials (discovered 2 exits: *Mat / *Min) -9/Mines -8/Materials History --------- Turn | Location | Event 5 | -11/Scrapyard | Discovered new exit (range 16) 40 | -11/Scrapyard | Entered Materials 142 | -10/Materials | Discovered new exit (range 9) 154 | -10/Materials | Entered Mines 260 | -10/Mines | Received a Rocket Launcher from a helpful Derelict 281 | -10/Mines | Discovered new exit (range 9) 304 | -10/Mines | Build established: Mutant 319 | -10/Mines | Entered Materials 319 | -9/Materials | Evolved 2 slots: Power x1, Weapon x1 320 | -9/Materials | Identified exit to Mines 605 | -9/Materials | Build established: Gunner 692 | -9/Materials | Discovered new exit (range 15) 898 | -9/Materials | Entered Mines 991 | -9/Mines | Discovered new exit (range 16) 1029 | -9/Mines | Entered Materials 1029 | -8/Materials | Evolved 2 slots: Propulsion x1, Utility x1 1345 | -8/Materials | Build established: Scavenger-Gunner 1464 | -8/Materials | Lost 7 parts (2p2n3w) 1555 | -8/Materials | Self-destructed Last Messages --------------- 01538_ U-05 Engineer lays Concrete. 01539_ R-06 Scavenger collects Structural Scanner. 01539_ U-05 Engineer lays Concrete. 01541_ G-50 Soldier destroyed. 01541_ U-05 Engineer lays Concrete. 01542_ R-06 Scavenger collects Terrain Scan Processor. 01542_ U-05 Engineer lays Concrete. 01544_ ALERT: Hostiles spotted, dispatching reinforcements to Terminal M003. 01545_ The unstable cave ceiling collapses. 01545_ R-06 Scavenger collects Welding Torch. 01545_ U-05 Engineer builds a Wall. 01545_ K-01 Serf collects debris. 01547_ R-06 Scavenger collects Lgt. Ion Engine. 01548_ K-01 Serf cleans the Electrolysis Chamber. 01549_ U-05 Engineer builds a Wall. 01553_ U-05 Engineer lays Concrete. Map ----- +----------------------------------------------------+ | ?????????#### #####+##???????+ =%#?????????????? | | ????????##! #???????#% !#?????????????? | | ????????#! ######### % #?????????????? | | ????????#! % ""# + #?????????????? | | ????????#! %% ""# ####+##?????????????? | | ????????#! % T"# """ #? ?????????????? | | ????????## %%% ""# """ # ???????????? | | ?????????#### ""# """ # #??????????? | | ????????????# # """ # #??????????? | | ????????????# + """ # #??????????? | | ????????????# # # #??????????? | | ????????????# # # #??????????? | | ????????????# [/# # #??????????? | | ???????????## / # # #??????????? | | ???????????#" # ! ##########??????????? | | ???????????#T #######???????????????????? | | ?????#?????#" #?????????????????????????? | | ?????# ????## #?????????????????????????? | | ?????# ? ??## """ #?????????????????????????? | | ?????# #T k""" #?????????????????????????? | | ?????# # % """ #?????????????????????????? | | ?????? #ur ##????????????????????????? | | #+#### #% r###+############?????????? | | % u ????????? | | ????????? | | ^ @ w g g ????????? | | ###### #### ###/#########????????????? | | ??????? ???????#######??? /???????????????????? | | ????? ??????????????????????/!#?????????????????? | | ????# ?????????????????????????#?????????????????? | | ????#????????????????????????????????????????????? | | ?????????????????????????????????????????????????? | | ?????????????????????????????????????????????????? | | ?????????????????????????????????????????????????? | | ?????????????????????????????????????????????????? | | ?????????????????????????????????????????????????? | | | | | | | | | | | | | | | | | | | | | | | | | | | | | +----------------------------------------------------+ Best States ------------- Heat Dissipation 55 Energy Generation 19 Energy Capacity 430 Matter Stores 300 Matter Capacity 300 Sight Range 16 Terrain Scan Density 10 Resistance: KI 20 Resistance: TH 20 Resistance: EX 20 Resistance: EM 20 Resistance: I 20 Resistance: S 20 Resistance: P 20 Evasion (%) 55 Offensive Hacking 10 Item Schematics ----------------- Aluminum Leg | -8/Materials | Scanalyzed Lgt. Assault Rifle | -8/Materials | Scanalyzed Med. Laser | -8/Materials | Scanalyzed Rocket Launcher | -8/Materials | Scanalyzed Robot Schematics ------------------ None Fabricated ------------ Nothing Alien Tech Used ----------------- None Achievements -------------- None Challenges ------------ None Game ------ Seed PlasmaMomentumPit Manual? 0 Play Time 00:15:08 Cumulative 21.1 hours Start 2024.07.14 @ 05:27:50 End 2024.07.14 @ 05:40:24 Sessions 1 Manual Loads 0 Difficulty Adventurer Special Mode None Game No. 33 Rogue 0 Adventurer 33 Explorer 0 Win Type - Total 0 Types 0/0/0/0/0/0/0/0/0 Lore% 25 Gallery% 26 Achievement% 21 Wizard Run 0 Options --------- Layout 2 ASCII 0 Keyboard 0 Movement Mouse Keybinds 0 Fullscreen 2 Font 48/Smallcaps Map View 25x22 Zoom Use 98% Tactical HUD 1 Map Filters NONE Filters NONE Steam 1 RUN: d6cbe2a1-0ae1-47ad-bde2-e36cb45ea444